fUST/lending_fUST_20251024
["ID","MTS","AMOUNT","RATE_DAILY","PERIOD"]
[392186959,1761245867791,-500.0,0.00021898,2]
[392186960,1761245867821,-500.0,0.00021898,2]
[392186961,1761245867853,-321.49882415,0.00021898,2]
[392186962,1761245867883,-500.0,0.00021898,2]
[392186963,1761245867915,-500.0,0.00021898,2]
[392186964,1761245867944,-162.80920632,0.00021898,2]
[392186965,1761245867976,-500.0,0.00021898,2]
[392186966,1761245868006,-500.0,0.00021898,2]
[392186967,1761245868035,-500.0,0.00021898,2]
[392186968,1761245868235,-500.0,0.00021898,2]
[392186969,1761245868270,-500.0,0.00021898,2]
[392186970,1761245868302,-500.0,0.00021898,2]
[392186971,1761245868335,-500.0,0.00021898,2]
[392186972,1761245868457,-500.0,0.00021898,2]
[392186973,1761245868492,-500.0,0.00021898,2]
[392186974,1761245868525,-545.70760283,0.00021898,2]
[392186975,1761245868557,-500.0,0.00021898,2]
[392186976,1761245868593,-500.0,0.00021898,2]
[392186977,1761245868627,-306.09817434,0.00021898,2]
[392186978,1761245868835,-296.39844566,0.00021898,2]
[392186979,1761245868867,-1000.0,0.00021899,2]
[392186980,1761245868899,-1000.0,0.00021899,2]
[392186981,1761245868929,-1000.0,0.00021899,2]
[392186982,1761245868959,-1000.0,0.00021899,2]
[392186983,1761245868989,-407.21310868,0.00021899,2]
[392186984,1761245869172,-592.78689132,0.00021899,2]
[392186985,1761245869218,-1000.0,0.00021899,2]
[392186986,1761245869260,-1000.0,0.00021899,2]
[392186987,1761245869301,-1000.0,0.00021899,2]
[392186988,1761245869339,-1000.0,0.00021899,2]
[392186989,1761245869398,-1000.0,0.00021899,2]
[392186990,1761245869440,-1000.0,0.00021899,2]
[392186991,1761245869473,-1000.0,0.00021899,2]
[392186992,1761245869511,-579.63055787,0.00021899,2]
[392186993,1761245869549,-500.0,0.00021899,2]
[392186994,1761245869588,-500.0,0.00021899,2]
[392186995,1761245869625,-340.74888426,0.00021899,2]
[392186996,1761245869714,-159.25111574,0.00021899,2]
[392186997,1761245869753,-500.0,0.00021899,2]
[392186998,1761245869789,-500.0,0.00021899,2]
[392186999,1761245869826,-500.0,0.00021899,2]
[392187000,1761245869863,-500.0,0.00021899,2]
[392187001,1761245869900,-500.0,0.00021899,2]
[392187002,1761245869935,-500.0,0.00021899,2]
[392187003,1761245869975,-519.1,0.00021899,2]
[392187004,1761245870126,-232.70179378,0.00021899,2]
[392187005,1761245870163,-384.21525779,0.00021899,2]
[392187006,1761245871502,-314.68,0.0002189,10]
[392187007,1761245878393,-4084.14019179,0.000219,2]
[392187008,1761245878406,-10000.01,0.000219,2]
[392187009,1761245878676,-10000.01,0.000219,2]
[392187010,1761245883750,-267.03,0.0002189,10]
[392187011,1761245889897,222.52,0.0002189,10]
[392187012,1761245894673,800.0,0.00021729,2]
[392187013,1761245894974,800.0,0.00021885,2]
[392187014,1761245901050,185.44,0.0002189,10]
[392187015,1761245902178,200.0,0.00021867,2]
[392187016,1761245911368,150.0,0.0001935,2]
[392187017,1761245912196,150.0,0.00020272,2]
[392187018,1761245912262,150.0,0.00021193,2]
[392187019,1761245912306,154.53,0.0002189,10]
[392187020,1761245913671,-300.0,0.00021899,2]
[392187021,1761245923765,772.68,0.0002189,10]
[392187022,1761245942533,300.0,0.00021898,2]
[392187023,1761245978920,150.0,0.00019355,2]
[392187024,1761245979324,150.0,0.00020277,2]
[392187025,1761245979723,150.0,0.00021199,2]
[392187026,1761245981471,7877.33,0.000218,2]
[392187027,1761245981494,10000.01,0.000218,2]
[392187028,1761245981516,10000.01,0.000218,2]
[392187029,1761245981542,10000.01,0.000218,2]
[392187030,1761245981566,10000.01,0.000218,2]
[392187031,1761245981588,10000.01,0.000218,2]
[392187032,1761245981615,10000.01,0.000218,2]
[392187033,1761245981639,10000.01,0.000218,2]
[392187034,1761245981660,10000.01,0.000218,2]
[392187035,1761245981684,10000.01,0.000218,2]
[392187036,1761245994908,-1267.25577403,0.00021652,2]
[392187037,1761245997989,-5253.00845194,0.000218,2]
[392187038,1761245998091,-10000.01,0.000218,2]
[392187039,1761245998257,-10000.01,0.000218,2]
[392187040,1761245998531,-10000.01,0.000218,2]
[392187041,1761245998574,-10000.01,0.000218,2]
[392187042,1761245998691,-10000.01,0.000218,2]
[392187043,1761245998833,-10000.01,0.000218,2]
[392187044,1761245999014,-10000.01,0.000218,2]
[392187045,1761245999294,-10000.01,0.000218,2]
[392187046,1761245999410,-10000.01,0.000218,2]
[392187047,1761246006988,-525.21,0.0002179,10]
[392187048,1761246007019,-300.0,0.00021799,2]
[392187049,1761246007068,-8349.59,0.000218,2]
[392187050,1761246007101,-10000.01,0.000218,2]
[392187051,1761246007249,-10000.01,0.000218,2]
[392187052,1761246007358,-10000.01,0.000218,2]
[392187053,1761246007493,-10000.01,0.000218,2]
[392187054,1761246007634,-10000.01,0.000218,2]
[392187055,1761246007758,-10000.01,0.000218,2]
[392187056,1761246007887,-10000.01,0.000218,2]
[392187057,1761246008041,-178.86,0.0002179,2]
[392187058,1761246008100,-9642.29,0.000218,2]
[392187059,1761246008158,-10000.01,0.000218,2]
[392187060,1761246031011,-162.09274955,0.000217,2]
[392187061,1761246031785,5000.0,0.00021483,7]
[392187062,1761246045992,150.0,0.00019469,2]
[392187063,1761246046064,-392.86334913,0.0002175,2]
[392187064,1761246046384,150.0,0.00020396,2]
[392187065,1761246046778,150.0,0.00021324,2]
[392187066,1761246049989,150.0,0.00017591,30]
[392187067,1761246050393,150.0,0.00018429,30]
[392187068,1761246050793,150.0,0.00019267,30]
[392187069,1761246055219,2771.76863138,0.0002175,2]
[392187070,1761246063185,300.0,0.00021751,2]
[392187071,1761246111267,1553.29357132,0.00021565,2]
[392187072,1761246111778,1250.94879142,0.000217,2]
[392187073,1761246118094,150.0,0.00019375,2]
[392187074,1761246118502,150.0,0.00020298,2]
[392187075,1761246118924,150.0,0.0002122,2]
[392187076,1761246122970,300.0,0.00021751,2]
[392187077,1761246127869,5000.0,0.00021752,2]
[392187078,1761246131474,317.24269991,0.00021443,2]
[392187079,1761246137763,277.58736242,0.00021443,2]
[392187080,1761246143097,550.93757493,0.00021752,2]
[392187081,1761246143120,4449.06242507,0.00021752,2]
[392187082,1761246151657,5000.0,0.00021752,2]
[392187083,1761246166621,550.94757493,0.00021752,2]
[392187084,1761246166647,1677.28379369,0.00021752,2]
[392187085,1761246183512,300.0,0.00021751,2]
[392187086,1761246187898,150.0,0.00019387,2]
[392187087,1761246188294,150.0,0.0002031,2]
[392187088,1761246188686,150.0,0.00021233,2]
[392187091,1761246242735,300.0,0.00021751,2]
[392187092,1761246248404,500.0,0.00021615,6]
[392187093,1761246250676,500.0,0.00021615,6]
[392187094,1761246252902,500.0,0.00021615,6]
[392187095,1761246255140,500.0,0.00021615,6]
[392187096,1761246255338,150.0,0.00019389,2]
[392187097,1761246255756,150.0,0.00020312,2]
[392187098,1761246256180,150.0,0.00021235,2]
[392187099,1761246256706,-828.36,0.0002179,10]
[392187100,1761246257384,500.0,0.00021615,6]
[392187101,1761246262071,5000.0,0.0002179,2]
[392187102,1761246266655,1579.63,0.0002179,10]
[392187103,1761246270393,1263.66,0.0002179,2]
[392187104,1761246270416,792.9657733,0.0002179,2]
[392187105,1761246272342,500.0,0.00021797,2]
[392187106,1761246272373,500.0,0.00021797,2]
[392187107,1761246272404,500.0,0.00021797,2]
[392187108,1761246272445,500.0,0.00021797,2]
[392187109,1761246272476,500.0,0.00021797,2]
[392187110,1761246272502,500.0,0.00021797,2]
[392187111,1761246272532,500.0,0.00021797,2]
[392187112,1761246272569,500.0,0.00021797,2]
[392187113,1761246272602,442.22636037,0.00021797,2]
[392187114,1761246272633,500.0,0.00021797,2]
[392187115,1761246272657,500.0,0.00021797,2]
[392187116,1761246272690,500.0,0.00021797,2]
[392187117,1761246272731,500.0,0.00021797,2]
[392187118,1761246272758,500.0,0.00021797,2]
[392187119,1761246272786,500.0,0.00021797,2]
[392187120,1761246272820,500.0,0.00021797,2]
[392187121,1761246272846,500.0,0.00021797,2]
[392187122,1761246272880,500.0,0.00021797,2]
[392187123,1761246272909,500.0,0.00021797,2]
[392187124,1761246272956,500.0,0.00021797,2]
[392187125,1761246273109,57.78363963,0.00021797,2]
[392187126,1761246273134,442.21636037,0.00021797,2]
[392187127,1761246273168,500.0,0.00021797,2]
[392187128,1761246273194,544.54243306,0.00021797,2]
[392187129,1761246273226,500.0,0.00021797,2]
[392187130,1761246273256,500.0,0.00021797,2]
[392187131,1761246273294,500.0,0.00021797,2]
[392187132,1761246273324,500.0,0.00021797,2]
[392187133,1761246273368,500.0,0.00021797,2]
[392187134,1761246273410,500.0,0.00021797,2]
[392187135,1761246273438,500.0,0.00021797,2]
[392187136,1761246273473,500.0,0.00021797,2]
[392187137,1761246273515,500.0,0.00021797,2]
[392187138,1761246273550,366.538111,0.00021797,2]
[392187139,1761246273618,500.0,0.00021797,2]
[392187140,1761246274989,536.57148641,0.00021443,2]
[392187141,1761246277499,965.82867553,0.00021443,2]
[392187142,1761246278943,1644.31293363,0.00021798,2]
[392187143,1761246278968,3298.71690259,0.00021798,2]
[392187144,1761246279438,1715.31172774,0.00021443,2]
[392187145,1761246287319,5000.0,0.00021798,2]
[392187146,1761246291408,500.0,0.00021797,2]
[392187147,1761246291438,500.0,0.00021797,2]
[392187148,1761246291470,500.0,0.00021797,2]
[392187149,1761246291498,500.0,0.00021797,2]
[392187150,1761246291531,500.0,0.00021797,2]
[392187151,1761246291561,422.03684087,0.00021797,2]
[392187152,1761246291593,500.0,0.00021797,2]
[392187153,1761246291621,500.0,0.00021797,2]
[392187154,1761246291650,500.0,0.00021797,2]
[392187155,1761246291677,500.0,0.00021797,2]
[392187156,1761246291703,77.97315913,0.00021797,2]
[392187157,1761246291730,422.02684087,0.00021797,2]
[392187158,1761246291768,500.0,0.00021797,2]
[392187159,1761246291795,278.88597211,0.00021797,2]
[392187160,1761246291825,500.0,0.00021797,2]
[392187161,1761246291862,500.0,0.00021797,2]
[392187162,1761246291897,500.0,0.00021797,2]
[392187163,1761246291927,500.0,0.00021797,2]
[392187164,1761246291971,500.0,0.00021797,2]
[392187165,1761246291998,500.0,0.00021797,2]
[392187166,1761246292041,500.0,0.00021797,2]
[392187167,1761246292835,500.0,0.00021797,2]
[392187168,1761246294436,500.0,0.00021797,2]
[392187169,1761246294464,500.0,0.00021797,2]
[392187170,1761246294742,500.0,0.00021797,2]
[392187171,1761246294782,500.0,0.00021797,2]
[392187172,1761246295241,500.0,0.00021797,2]
[392187173,1761246295278,429.61534567,0.00021797,2]
[392187174,1761246295453,182.03351901,0.00021797,2]
[392187175,1761246295894,1687.44832234,0.00021798,2]
[392187176,1761246295918,3099.26083592,0.00021798,2]
[392187177,1761246301777,300.0,0.00021797,2]
[392187178,1761246302255,300.0,0.00021797,2]
[392187179,1761246302490,300.0,0.00021797,2]
[392187180,1761246303598,300.0,0.00021797,2]
[392187181,1761246304202,5000.0,0.00021798,2]
[392187182,1761246305708,700.74916408,0.00021797,2]
[392187183,1761246305734,499.25083592,0.00021797,2]
[392187184,1761246306482,196.0,0.00016,2]
[392187185,1761246306763,196.0,0.00016066,2]
[392187186,1761246307034,196.0,0.00016131,2]
[392187187,1761246307321,196.0,0.00016197,2]
[392187188,1761246307594,196.0,0.00016263,2]
[392187189,1761246307875,196.0,0.00016328,2]
[392187190,1761246308145,196.0,0.00016394,2]
[392187191,1761246308417,196.0,0.00016459,2]
[392187192,1761246308688,196.0,0.00016525,2]
[392187193,1761246308967,196.0,0.00016591,2]
[392187194,1761246309230,196.0,0.00016656,2]
[392187195,1761246309508,196.0,0.00016722,2]
[392187196,1761246309812,196.0,0.00016788,2]
[392187197,1761246310084,196.0,0.00016853,2]
[392187198,1761246310355,196.0,0.00016919,2]
[392187199,1761246310626,196.0,0.00016984,2]
[392187200,1761246311030,196.0,0.0001705,2]
[392187201,1761246311171,196.0,0.00017116,2]
[392187202,1761246311447,196.0,0.00017181,2]
[392187203,1761246311718,196.0,0.00017247,2]
[392187204,1761246312103,196.0,0.00017313,2]
[392187205,1761246312224,5000.0,0.00021798,2]
[392187206,1761246312383,196.0,0.00017378,2]
[392187207,1761246312649,188.75916408,0.00017444,2]
[392187208,1761246312672,7.24083592,0.00017444,2]
[392187209,1761246312929,196.0,0.00017509,2]
[392187210,1761246313292,196.0,0.00017575,2]
[392187211,1761246313582,196.0,0.00017641,2]
[392187212,1761246313868,196.0,0.00017706,2]
[392187213,1761246314140,196.0,0.00017772,2]
[392187214,1761246314407,196.0,0.00017838,2]
[392187215,1761246314700,196.0,0.00017903,2]
[392187216,1761246314977,196.0,0.00017969,2]
[392187217,1761246315281,196.0,0.00018034,2]
[392187218,1761246315576,196.0049115,0.000181,2]
[392187219,1761246321535,150.0,0.00019391,2]
[392187220,1761246321982,150.0,0.00020315,2]
[392187221,1761246322386,185.77,0.00021238,2]
[392187222,1761246325796,150.0,0.00017975,30]
[392187223,1761246326107,150.0,0.00018831,30]
[392187224,1761246326512,150.0,0.00019686,30]
[392187225,1761246326911,150.0,0.00020542,30]
[392187226,1761246327309,150.0,0.00021398,30]
[392187227,1761246328511,5000.0,0.00021798,2]
[392187228,1761246335470,1796.99425258,0.00020951,2]
[392187229,1761246335495,10000.01,0.00020951,2]
[392187230,1761246335517,10000.01,0.00020951,2]
[392187231,1761246335539,10000.01,0.00020951,2]
[392187232,1761246335566,9248.19156292,0.00020951,2]
[392187233,1761246336814,751.81843708,0.00021798,2]
[392187234,1761246336836,4248.18156292,0.00021798,2]
[392187237,1761246345176,3038.9377948,0.00021798,2]
[392187239,1761246353505,2712.89064228,0.00021798,2]
[392187240,1761246353529,2287.10935772,0.00021798,2]
[392187241,1761246362053,5000.0,0.00021798,2]
[392187242,1761246362673,300.0,0.00021797,2]
[392187243,1761246367850,1827.85546419,0.00021035,2]
[392187244,1761246368176,585.04517809,0.00021231,2]
[392187245,1761246368199,1242.8102861,0.00021231,2]
[392187246,1761246368750,1827.85546419,0.00021601,2]
[392187247,1761246369896,5000.0,0.00021798,2]
[392187248,1761246377946,1929.34424971,0.00021798,2]
[392187249,1761246377969,3070.65575029,0.00021798,2]
[392187250,1761246385797,5000.0,0.00021798,2]
[392187252,1761246389487,-3930.04742101,0.00021798,2]
[392187253,1761246389729,-10000.01,0.00021798,2]
[392187254,1761246390015,-2748.23665943,0.00021798,2]
[392187255,1761246394329,1718.41739782,0.00021799,2]
[392187256,1761246397916,216.91,0.00019404,2]
[392187257,1761246398310,433.82,0.00020328,2]
[392187258,1761246398704,650.73,0.00021252,2]
[392187259,1761246401934,150.0,0.00012748,30]
[392187260,1761246402081,1333.65928332,0.00021799,2]
[392187261,1761246402103,3666.34071668,0.00021799,2]
[392187262,1761246402327,185.92,0.00013356,30]
[392187263,1761246402721,278.88,0.00013963,30]
[392187264,1761246403154,371.84,0.0001457,30]
[392187265,1761246403558,464.81,0.00015177,30]
[392187266,1761246403958,557.77,0.00015784,30]
[392187267,1761246404351,650.73,0.00016391,30]
[392187268,1761246404746,743.69,0.00016998,30]
[392187269,1761246405150,836.65,0.00017605,30]
[392187270,1761246405576,872.56667029,0.00018212,30]
[392187271,1761246407200,-385.00608215,0.00021799,2]
[392187272,1761246407228,-500.0,0.00021799,2]
[392187273,1761246407257,-167.0232308,0.00021799,2]
[392187274,1761246408841,395.21084133,0.00021699,2]
[392187275,1761246410647,5000.0,0.00021799,2]
[392187276,1761246422275,-234.56241522,0.00021799,2]
[392187277,1761246422304,-577.70800949,0.00021799,2]
[392187278,1761246422794,-9847.54424114,0.000218,2]
[392187279,1761246422944,300.0,0.00021799,2]
[392187280,1761246422966,-9700.01,0.000218,2]
[392187281,1761246423084,-10000.01,0.000218,2]
[392187282,1761246423190,-10000.01,0.000218,2]
[392187283,1761246423293,-10000.01,0.000218,2]
[392187284,1761246423425,-10000.01,0.000218,2]
[392187285,1761246423551,-10000.01,0.000218,2]
[392187286,1761246423668,-670.09269308,0.000218,2]
[392187287,1761246423692,-8659.82461384,0.000218,2]
[392187288,1761246425257,-200.0,0.000218,2]
[392187289,1761246425990,5000.0,0.00021799,2]
[392187290,1761246426018,196.0,0.00016,2]
[392187291,1761246426305,196.0,0.00016046,2]
[392187292,1761246426601,196.0,0.00016091,2]
[392187293,1761246426909,196.0,0.00016137,2]
[392187294,1761246427191,196.0,0.00016183,2]
[392187295,1761246427534,196.0,0.00016228,2]
[392187296,1761246427747,196.0,0.00016274,2]
[392187297,1761246428065,196.0,0.0001632,2]
[392187298,1761246428361,196.0,0.00016365,2]
[392187299,1761246428647,196.0,0.00016411,2]
[392187300,1761246428934,196.0,0.00016457,2]
[392187301,1761246429207,196.0,0.00016502,2]
[392187302,1761246429795,274.02803059,0.00021443,2]
[392187303,1761246429950,196.0,0.00016548,2]
[392187304,1761246430225,196.0,0.00016593,2]
[392187305,1761246430500,196.0,0.00016639,2]
[392187306,1761246430779,196.0,0.00016685,2]
[392187307,1761246431059,196.0,0.0001673,2]
[392187308,1761246431442,196.0,0.00016776,2]
[392187309,1761246431633,196.0,0.00016822,2]
[392187310,1761246431781,493.25045506,0.00021443,2]
[392187311,1761246431913,108.73151435,0.00016867,2]
[392187312,1761246431936,87.26848565,0.00016867,2]
[392187313,1761246432277,196.0,0.00016913,2]
[392187314,1761246432552,196.0,0.00016959,2]
[392187315,1761246432840,196.0,0.00017004,2]
[392187316,1761246433141,196.0,0.0001705,2]
[392187317,1761246433416,196.0,0.00017096,2]
[392187318,1761246433688,196.0,0.00017141,2]
[392187319,1761246433964,196.0,0.00017187,2]
[392187320,1761246433992,876.01280818,0.00021443,2]
[392187321,1761246434262,196.0,0.00017233,2]
[392187322,1761246434374,5000.0,0.000218,2]
[392187324,1761246434535,196.0,0.00017278,2]
[392187325,1761246434717,-500.0,0.00021899,2]
[392187326,1761246434746,-500.0,0.00021899,2]
[392187327,1761246434773,-500.0,0.00021899,2]
[392187328,1761246434800,-500.0,0.00021899,2]
[392187329,1761246434827,-500.0,0.00021899,2]
[392187330,1761246434853,-320.5908036,0.00021899,2]
[392187331,1761246434880,-500.0,0.00021899,2]
[392187332,1761246434910,-501.94,0.00021899,2]
[392187333,1761246434938,-501.94,0.00021899,2]
[392187334,1761246434968,-501.94,0.00021899,2]
[392187335,1761246435149,196.0,0.00017324,2]
[392187336,1761246435428,196.0,0.0001737,2]
[392187337,1761246435465,-501.94,0.00021899,2]
[392187338,1761246435492,-501.94,0.00021899,2]
[392187339,1761246435522,-501.94,0.00021899,2]
[392187340,1761246435552,-501.94,0.00021899,2]
[392187341,1761246435580,-501.94,0.00021899,2]
[392187342,1761246435608,-501.94,0.00021899,2]
[392187343,1761246435638,-501.94,0.00021899,2]
[392187344,1761246435666,-501.94,0.00021899,2]
[392187345,1761246435695,-501.94,0.00021899,2]
[392187346,1761246435726,-463.15,0.00021899,2]
[392187347,1761246435754,196.0,0.00017415,2]
[392187348,1761246435993,-38.79,0.00021899,2]
[392187349,1761246436022,-501.94,0.00021899,2]
[392187350,1761246436049,-501.94,0.00021899,2]
[392187351,1761246436078,-501.94,0.00021899,2]
[392187352,1761246436105,-501.94,0.00021899,2]
[392187353,1761246436331,196.0,0.00017461,2]
[392187354,1761246436397,196.0,0.00017507,2]
[392187355,1761246436541,196.0,0.00017552,2]
[392187356,1761246436589,196.0,0.00017598,2]
[392187357,1761246436622,205.60680494,0.00021652,2]
[392187358,1761246436802,196.0,0.00017643,2]
[392187359,1761246437092,196.0,0.00017689,2]
[392187360,1761246437365,196.0,0.00017735,2]
[392187361,1761246437747,196.0,0.0001778,2]
[392187362,1761246438001,196.0,0.00017826,2]
[392187363,1761246438276,196.0,0.00017872,2]
[392187364,1761246438580,196.0,0.00017917,2]
[392187365,1761246438879,196.0,0.00017963,2]
[392187366,1761246439161,196.0,0.00018009,2]
[392187367,1761246439441,196.0,0.00018054,2]
[392187368,1761246439711,313.44274312,0.000181,2]
[392187369,1761246440692,214.42204563,0.00021071,2]
[392187370,1761246445481,500.0,0.00021799,2]
[392187371,1761246446148,213.55964899,0.00021799,2]
[392187372,1761246446437,298.00372434,0.00021799,2]
[392187373,1761246446741,282.72693701,0.00021799,2]
[392187374,1761246446775,500.0,0.00021799,2]
[392187375,1761246447080,500.0,0.00021799,2]
[392187376,1761246447479,135.14809597,0.00021799,2]
[392187377,1761246447517,364.85190403,0.00021799,2]
[392187378,1761246447844,199.5726063,0.00021799,2]
[392187379,1761246448048,197.6539969,0.00021799,2]
[392187380,1761246449648,5000.0,0.00021899,2]
[392187381,1761246457983,4237.93149277,0.00021899,2]
[392187382,1761246458005,762.06850723,0.00021899,2]
[392187383,1761246458430,1000.0,0.00021899,2]
[392187384,1761246458677,1000.0,0.00021899,2]
[392187385,1761246458935,1000.0,0.00021899,2]
[392187386,1761246459175,1000.0,0.00021899,2]
[392187387,1761246459424,1000.0,0.00021899,2]
[392187388,1761246459681,1000.0,0.00021899,2]
[392187389,1761246459916,1000.0,0.00021899,2]
[392187390,1761246460183,1000.0,0.00021899,2]
[392187391,1761246460519,1000.0,0.00021899,2]
[392187392,1761246460664,237.94149277,0.00021899,2]
[392187393,1761246460685,762.05850723,0.00021899,2]
[392187394,1761246460915,1000.0,0.00021899,2]
[392187395,1761246461194,1000.0,0.00021899,2]
[392187396,1761246461437,1000.0,0.00021899,2]
[392187397,1761246461679,1000.0,0.00021899,2]
[392187398,1761246461939,1000.0,0.00021899,2]
[392187399,1761246462166,1000.0,0.00021899,2]
[392187400,1761246462622,688.9381423,0.00021899,2]
[392187401,1761246466546,553.52,0.00021799,2]
[392187402,1761246466785,553.52,0.00021799,2]
[392187403,1761246467033,553.52,0.00021799,2]
[392187404,1761246467317,553.52,0.00021799,2]
[392187405,1761246467552,334.93335047,0.000217,2]
[392187406,1761246467574,10000.01,0.000217,2]
[392187407,1761246467595,10000.01,0.000217,2]
[392187408,1761246467617,10000.01,0.000217,2]
[392187409,1761246467639,10000.01,0.000217,2]
[392187410,1761246467661,10000.01,0.000217,2]
[392187411,1761246467682,10000.01,0.000217,2]
[392187412,1761246467703,10000.01,0.000217,2]
[392187413,1761246467725,10000.01,0.000217,2]
[392187414,1761246467746,10000.01,0.000217,2]
[392187415,1761246477821,150.0,0.00017814,30]
[392187416,1761246478328,150.0,0.00018662,30]
[392187417,1761246478609,217.34,0.0001951,30]
[392187418,1761246479012,289.79,0.00020359,30]
[392187419,1761246482001,5000.0,0.00020121,7]
[392187420,1761246494674,-182.89,0.00015105,2]
[392187421,1761246494699,-96.39213629,0.00015105,2]
[392187422,1761246500491,-86.49786371,0.00015105,2]
[392187423,1761246500514,-177.08789888,0.00015105,2]
[392187424,1761246504446,5000.0,0.00020121,7]
[392187425,1761246512790,2979.95092275,0.00020121,7]
[392187426,1761246555043,-5.80210112,0.00015105,2]
[392187427,1761246555066,-196.0,0.00016,2]
[392187428,1761246555087,-30.87203336,0.00016525,2]
[392187429,1761246556277,150.0,0.00017378,30]
[392187430,1761246556799,150.0,0.00018206,30]
[392187439,1761246557253,216.61,0.00019034,30]
[392187440,1761246557686,288.82,0.00019861,30]
[392187441,1761246558062,361.02,0.00020689,30]
[392187442,1761246558354,-165.12796664,0.00016525,2]
[392187443,1761246558375,-64.01482763,0.0001705,2]
[392187444,1761246560620,-131.98517237,0.0001705,2]
[392187445,1761246560642,-64.01482763,0.00017575,2]
[392187453,1761246574084,-131.98517237,0.00017575,2]
[392187460,1761246574209,-284.51681767,0.000181,2]
[392187462,1761246574230,-193.10497604,0.00018561,2]
[392187543,1761246621032,-3881.89721266,0.00018376,2]
[392187544,1761246624128,-3881.89721266,0.00018561,2]
[392187545,1761246624161,-1036.21557468,0.00020302,2]
[392187546,1761246626902,-163.78442532,0.00020302,2]
[392187547,1761246626941,-200.0,0.00020348,9]
[392187548,1761246626976,-300.0,0.00020683,2]
[392187549,1761246627007,-1862.99199258,0.00020799,2]
[392187550,1761246627037,-246.05268842,0.00020937,2]
[392187551,1761246627069,-500.0,0.00020973,2]
[392187552,1761246627100,-500.0,0.00020973,2]
[392187553,1761246627131,-500.0,0.00020973,2]
[392187554,1761246627163,-500.0,0.00020973,2]
[392187555,1761246629914,-516.48762778,0.00020973,2]
[392187556,1761246629943,-354.79328094,0.00020973,2]
[392187557,1761246629974,-500.0,0.00020973,2]
[392187558,1761246630003,-500.0,0.00020973,2]
[392187559,1761246630033,-500.0,0.00020973,2]
[392187560,1761246630064,-500.0,0.00020973,2]
[392187561,1761246630092,-500.0,0.00020973,2]
[392187562,1761246630122,-500.0,0.00020973,2]
[392187563,1761246630151,-500.0,0.00020973,2]
[392187564,1761246630182,-500.0,0.00020973,2]
[392187634,1761246632233,-153.63,0.00019331,2]
[392187636,1761246632243,-151.9068808,0.00020251,2]
[392187638,1761246632266,-155.3531192,0.00020251,2]